[Event "28th Hit Open-A 2024"]
[Site "Nova Gorica"]
[Date "2024.02.01"]
[Round "8.18"]
[White "Pirs, Matjaz"]
[Black "Siraj, Svit"]
[Result "1/2-1/2"]
[ECO "C47"]
[WhiteElo "1965"]
[BlackElo "2182"]
[Annotator "ChessBase"]
[PlyCount "145"]
[EventDate "2024.01.22"]
[EventType "swiss"]
[EventCountry "SLO"]
[SourceTitle "playchess.com"]
[Source "ChessBase"]
[SourceQuality "1"]
[TimeControl "5400+30"]

1. e4 {[%emt 0:00:03]} e5 {[%emt 0:00:06]} 2. Nc3 {[%emt 0:00:44]} Nf6 {[%emt 0:00:20]} 3. Nf3 {[%emt 0:00:20]} Nc6 {[%emt 0:00:17]} 4. d4 {[%emt 0:01:17]} exd4 {[%emt 0:00:34]} 5. Nxd4 {[%emt 0:01:14]} Bb4 {[%emt 0:00:22]} 6. Nxc6 {[%emt 0:00:27]} bxc6 {[%emt 0:00:06]} 7. Bd3 {[%emt 0:00:08]} d5 {[%emt 0:00:02]} 8. exd5 {[%emt 0:00:10]} cxd5 {[%emt 0:00:05]} 9. O-O {[%emt 0:00:08]} O-O {[%emt 0:00:45]} 10. h3 {[%emt 0:02:06]} h6 {[%emt 0:00:39]} 11. Qf3 {[%emt 0:00:46]} c6 {[%emt 0:00:57]} 12. Bf4 {[%emt 0:00:44]} Bd6 {[%emt 0:00:30]} 13. Rfe1 {[%emt 0:04:44]} Rb8 {[%emt 0:02:41]} 14. Rab1 {[%emt 0:03:47]} Bb7 {[%emt 0:02:05]} 15. Ne2 {[%emt 0:18:15]} c5 {[%emt 0:05:40]} 16. Bxd6 {[%emt 0:03:38]} Qxd6 {[%emt 0:00:15]} 17. Qg3 {[%emt 0:02:13]} Qc6 {[%emt 0:10:45]} 18. c3 {[%emt 0:11:50]} Ba6 {[%emt 0:13:20]} 19. Qf3 {[%emt 0:22:08]} Bxd3 {[%emt 0:04:38]} 20. Qxd3 {[%emt 0:00:08]} Qb5 {[%emt 0:00:14]} 21. Qxb5 {[%emt 0:03:09]} Rxb5 {[%emt 0:00:25]} 22. Ng3 {[%emt 0:00:17]} a5 {[%emt 0:01:35]} 23. Re2 {[%emt 0:01:10]} Rfb8 {[%emt 0:00:12]} 24. b3 {[%emt 0:02:06]} c4 {[%emt 0:04:27]} 25. Reb2 {[%emt 0:00:37]} Nd7 {[%emt 0:08:51]} 26. Nf5 {[%emt 0:01:48]} Nc5 {[%emt 0:07:51]} 27. Nd4 {[%emt 0:02:57]} R5b6 {[%emt 0:00:40]} 28. Kf1 {[%emt 0:00:45]} g6 {[%emt 0:02:20]} 29. f3 {[%emt 0:03:15]} Kf8 {[%emt 0:08:53]} 30. Rd1 {[%emt 0:02:17]} cxb3 {[%emt 0:02:56]} 31. axb3 {[%emt 0:00:09]} Nxb3 {[%emt 0:00:08]} 32. Nxb3 {[%emt 0:00:05]} a4 {[%emt 0:04:39]} 33. Rxd5 {[%emt 0:00:42]} a3 {[%emt 0:01:07]} 34. Rc2 {[%emt 0:09:18]} Rxb3 {[%emt 0:00:40]} 35. Ra5 {[%emt 0:00:22]} Rb2 {[%emt 0:00:25]} 36. Re2 {[%emt 0:00:25]} R8b3 {[%emt 0:10:45]} 37. c4 {[%emt 0:00:08]} Rc3 {[%emt 0:01:02]} 38. c5 {[%emt 0:01:07]} Rbb3 {[%emt 0:03:41]} 39. Kf2 {[%emt 0:01:22]} Kg7 {[%emt 0:00:32]} 40. Kg3 {[%emt 0:00:26]} g5 {[%emt 0:00:12]} 41. Ra2 {[%emt 0:00:31]} h5 {[%emt 0:01:37]} 42. c6 {[%emt 0:00:16]} Kg6 {[%emt 0:00:42]} 43. c7 {[%emt 0:00:18]} h4+ {[%emt 0:01:32]} 44. Kh2 {[%emt 0:00:03]} Rb1 {[%emt 0:02:16]} 45. R5xa3 {[%emt 0:01:25]} Rcc1 {[%emt 0:00:25]} 46. g4 {[%emt 0:00:54]} Rxc7 {[%emt 0:00:09]} 47. Ra6+ {[%emt 0:02:31]} f6 {[%emt 0:00:07]} 48. f4 {[%emt 0:00:07]} gxf4 {[%emt 0:01:09]} 49. Rf2 {[%emt 0:00:13]} Rc3 {[%emt 0:00:47]} 50. g5 {[%emt 0:01:15]} Kxg5 {[%emt 0:00:16]} 51. Ra5+ {[%emt 0:00:05]} f5 {[%emt 0:00:14]} 52. Ra8 {[%emt 0:00:05]} Rbb3 {[%emt 0:00:54]} 53. Rg8+ {[%emt 0:00:16]} Kf6 {[%emt 0:00:04]} 54. Rf8+ {[%emt 0:00:25]} Kg7 {[%emt 0:00:35]} 55. Rxf5 {[%emt 0:00:12]} Rxh3+ {[%emt 0:00:04]} 56. Kg2 {[%emt 0:00:09]} Rbg3+ {[%emt 0:00:04]} 57. Kf1 {[%emt 0:00:11]} f3 {[%emt 0:00:08]} 58. Ke1 {[%emt 0:00:09]} Kg6 {[%emt 0:01:28]} 59. Rf8 {[%emt 0:00:12]} Kg7 {[%emt 0:01:04]} 60. Rf5 {[%emt 0:00:10]} Rg2 {[%emt 0:00:35]} 61. Rxg2+ {[%emt 0:00:25]} fxg2 {[%emt 0:00:09]} 62. Rg5+ {[%emt 0:00:15]} Kf6 {[%emt 0:00:26]} 63. Rxg2 {[%emt 0:00:04]} Kf5 {[%emt 0:00:47]} 64. Kf2 {[%emt 0:00:09]} Kf4 {[%emt 0:00:26]} 65. Rg8 {[%emt 0:00:15]} Ra3 {[%emt 0:00:36]} 66. Kg2 {[%emt 0:01:02]} Rc3 {[%emt 0:00:38]} 67. Rf8+ {[%emt 0:00:10]} Kg5 {[%emt 0:00:07]} 68. Rg8+ {[%emt 0:00:05]} Kf6 {[%emt 0:00:02]} 69. Kh2 {[%emt 0:00:10]} Kf7 {[%emt 0:00:09]} 70. Rg4 {[%emt 0:00:10]} h3 {[%emt 0:00:04]} 71. Rg3 {[%emt 0:00:03]} Rxg3 {[%emt 0:00:04]} 72. Kxg3 {[%emt 0:00:03]} h2 {[%emt 0:00:02]} 73. Kxh2 {[%emt 0:00:05]} 1/2-1/2

[Event "28th Hit Open-A 2024"]
[Site "Nova Gorica"]
[Date "2024.02.01"]
[Round "8.19"]
[White "Szegedy, Matyas"]
[Black "Budai, Leonardo"]
[Result "1-0"]
[ECO "C97"]
[WhiteElo "2129"]
[BlackElo "1847"]
[Annotator "ChessBase"]
[PlyCount "73"]
[EventDate "2024.01.22"]
[EventType "swiss"]
[EventCountry "SLO"]
[SourceTitle "playchess.com"]
[Source "ChessBase"]
[SourceQuality "1"]
[TimeControl "5400+30"]

1. e4 {[%emt 0:00:06]} e5 {[%emt 0:00:04]} 2. Nf3 {[%emt 0:00:11]} Nc6 {[%emt 0:00:05]} 3. Bb5 {[%emt 0:00:33]} a6 {[%emt 0:00:15]} 4. Ba4 {[%emt 0:00:09]} Nf6 {[%emt 0:00:10]} 5. O-O {[%emt 0:00:24]} Be7 {[%emt 0:00:15]} 6. Re1 {[%emt 0:00:16]} b5 {[%emt 0:00:08]} 7. Bb3 {[%emt 0:00:06]} O-O {[%emt 0:00:09]} 8. h3 {[%emt 0:00:18]} d6 {[%emt 0:02:36]} 9. c3 {[%emt 0:00:19]} Na5 {[%emt 0:00:11]} 10. Bc2 {[%emt 0:00:17]} c5 {[%emt 0:00:13]} 11. d4 {[%emt 0:00:14]} Qc7 {[%emt 0:00:12]} 12. d5 {[%emt 0:00:52]} Nd7 {[%emt 0:01:27]} 13. b3 {[%emt 0:03:59]} Nb6 {[%emt 0:01:10]} 14. Nbd2 {[%emt 0:00:48]} f5 {[%emt 0:14:58]} 15. exf5 {[%emt 0:10:28]} Nxd5 {[%emt 0:01:54]} 16. Ne4 {[%emt 0:00:38]} Nb6 {[%emt 0:00:56]} 17. Ng3 {[%emt 0:08:23]} Nc6 {[%emt 0:18:25]} 18. Ng5 {[%emt 0:19:27]} Bxg5 {[%emt 0:13:42]} 19. Bxg5 {[%emt 0:00:07]} d5 {[%emt 0:03:33]} 20. a4 {[%emt 0:39:47]} bxa4 {[%emt 0:01:21]} 21. bxa4 {[%emt 0:00:08]} a5 {[%emt 0:04:30]} 22. Rb1 {[%emt 0:00:07]} Rb8 {[%emt 0:11:25]} 23. Rb5 {[%emt 0:03:36]} Na7 {[%emt 0:15:00]} 24. Rb1 {[%emt 0:00:05]} Bd7 {[%emt 0:07:11]} 25. f6 {[%emt 0:00:30]} g6 {[%emt 0:00:25]} 26. h4 {[%emt 0:00:20]} Be6 {[%emt 0:00:21]} 27. h5 {[%emt 0:00:22]} e4 {[%emt 0:00:12]} 28. hxg6 {[%emt 0:06:06]} hxg6 {[%emt 0:00:03]} 29. Nxe4 {[%emt 0:02:14]} dxe4 {[%emt 0:00:48]} 30. Rxe4 {[%emt 0:00:14]} Rfd8 {[%emt 0:02:57]} 31. Qe2 {[%emt 0:01:45]} Bc4 {[%emt 0:00:43]} 32. Qg4 {[%emt 0:00:21]} Qd7 {[%emt 0:00:32]} 33. Qg3 {[%emt 0:01:14]} Qf5 {[%emt 0:00:38]} 34. Re8+ {[%emt 0:00:00]} Rxe8 {[%emt 0:00:03]} 35. Bxf5 {[%emt 0:00:00]} gxf5 {[%emt 0:00:22]} 36. Bf4+ {[%emt 0:00:00]} Kf7 {[%emt 0:00:10]} 37. Bxb8 {[%emt 0:00:23]} 1-0

[Event "28th Hit Open-A 2024"]
[Site "Nova Gorica"]
[Date "2024.02.01"]
[Round "8.20"]
[White "Markocic, Tine"]
[Black "Davies, Nigel R"]
[Result "1/2-1/2"]
[ECO "C41"]
[WhiteElo "2055"]
[BlackElo "2349"]
[Annotator "ChessBase"]
[PlyCount "117"]
[EventDate "2024.01.22"]
[EventType "swiss"]
[EventCountry "SLO"]
[SourceTitle "playchess.com"]
[Source "ChessBase"]
[SourceQuality "1"]
[TimeControl "5400+30"]

1. e4 {[%emt 0:00:07]} d6 {[%emt 0:00:12]} 2. d4 {[%emt 0:00:14]} Nf6 {[%emt 0:00:19]} 3. Nc3 {[%emt 0:00:12]} e5 {[%emt 0:00:06]} 4. Nf3 {[%emt 0:00:22]} Nbd7 {[%emt 0:00:10]} 5. Bc4 {[%emt 0:00:41]} Be7 {[%emt 0:00:08]} 6. O-O {[%emt 0:00:38]} O-O {[%emt 0:00:08]} 7. Re1 {[%emt 0:01:15]} c6 {[%emt 0:04:53]} 8. a4 {[%emt 0:01:54]} b6 {[%emt 0:01:11]} 9. Bg5 {[%emt 0:01:31]} a6 {[%emt 0:00:26]} 10. Bxf6 {[%emt 0:09:54]} Bxf6 {[%emt 0:00:18]} 11. d5 {[%emt 0:00:09]} c5 {[%emt 0:00:18]} 12. Bf1 {[%emt 0:02:10]} g6 {[%emt 0:09:44]} 13. Nd2 {[%emt 0:00:33]} Bg7 {[%emt 0:00:40]} 14. Nc4 {[%emt 0:01:17]} Qc7 {[%emt 0:00:33]} 15. Rb1 {[%emt 0:05:37]} Rb8 {[%emt 0:14:18]} 16. b4 {[%emt 0:09:23]} Bf6 {[%emt 0:00:31]} 17. bxc5 {[%emt 0:09:17]} Nxc5 {[%emt 0:00:34]} 18. Rb2 {[%emt 0:02:07]} Bd7 {[%emt 0:00:21]} 19. Qa1 {[%emt 0:00:41]} b5 {[%emt 0:04:12]} 20. axb5 {[%emt 0:02:11]} axb5 {[%emt 0:00:13]} 21. Na3 {[%emt 0:00:14]} b4 {[%emt 0:00:59]} 22. Nab5 {[%emt 0:00:31]} bxc3 {[%emt 0:00:19]} 23. Nxc7 {[%emt 0:00:57]} cxb2 {[%emt 0:00:07]} 24. Qb1 {[%emt 0:09:15]} Na4 {[%emt 0:16:02]} 25. c4 {[%emt 0:00:56]} Nc3 {[%emt 0:00:49]} 26. Qc2 {[%emt 0:00:04]} b1=Q {[%emt 0:00:28]} 27. Rxb1 {[%emt 0:00:05]} Nxb1 {[%emt 0:00:12]} 28. Nb5 {[%emt 0:00:39]} Bxb5 {[%emt 0:00:43]} 29. cxb5 {[%emt 0:00:03]} Na3 {[%emt 0:01:01]} 30. Qb3 {[%emt 0:01:39]} Nxb5 {[%emt 0:01:10]} 31. Bxb5 {[%emt 0:00:06]} Rfc8 {[%emt 0:00:07]} 32. g3 {[%emt 0:00:27]} Rc5 {[%emt 0:03:10]} 33. Qf3 {[%emt 0:00:05]} Kg7 {[%emt 0:00:08]} 34. Bc6 {[%emt 0:07:08]} Rb2 {[%emt 0:02:16]} 35. Be8 {[%emt 0:02:18]} h5 {[%emt 0:02:31]} 36. Qa3 {[%emt 0:02:55]} Rb8 {[%emt 0:01:05]} 37. Bd7 {[%emt 0:00:35]} Bd8 {[%emt 0:01:35]} 38. Kg2 {[%emt 0:05:00]} Ba5 {[%emt 0:00:48]} 39. h3 {[%emt 0:03:55]} Kf8 {[%emt 0:01:18]} 40. Qe3 {[%emt 0:00:29]} Kg7 {[%emt 0:01:23]} 41. Qa3 {[%emt 0:02:19]} Rb7 {[%emt 0:01:17]} 42. Bc6 {[%emt 0:01:15]} Rb4 {[%emt 0:00:24]} 43. Qf3 {[%emt 0:00:09]} Rb8 {[%emt 0:05:24]} 44. Qa3 {[%emt 0:00:48]} Rc8 {[%emt 0:03:56]} 45. Bd7 {[%emt 0:01:32]} R8c7 {[%emt 0:00:33]} 46. Bc6 {[%emt 0:00:07]} Ra7 {[%emt 0:02:16]} 47. Be8 {[%emt 0:04:54]} Kf8 {[%emt 0:05:38]} 48. Bc6 {[%emt 0:00:03]} Bb6 {[%emt 0:01:37]} 49. Qb3 {[%emt 0:00:04]} Bc7 {[%emt 0:00:07]} 50. g4 {[%emt 0:01:46]} hxg4 {[%emt 0:00:25]} 51. hxg4 {[%emt 0:00:05]} Rca5 {[%emt 0:01:09]} 52. Qh3 {[%emt 0:00:54]} Kg7 {[%emt 0:01:35]} 53. g5 {[%emt 0:00:05]} Bb6 {[%emt 0:02:42]} 54. Qh6+ {[%emt 0:02:54]} Kg8 {[%emt 0:00:07]} 55. Be8 {[%emt 0:00:04]} Ra2 {[%emt 0:05:26]} 56. Bxf7+ {[%emt 0:00:09]} Rxf7 {[%emt 0:03:19]} 57. Qxg6+ {[%emt 0:00:07]} Rg7 {[%emt 0:00:21]} 58. Qe8+ {[%emt 0:00:13]} Kh7 {[%emt 0:00:07]} 59. Qh5+ {[%emt 0:00:04]} 1/2-1/2

[Event "28th Hit Open-A 2024"]
[Site "Nova Gorica"]
[Date "2024.02.01"]
[Round "8.21"]
[White "Rigatti, Giorgio"]
[Black "Ongut, Tamas Gunes"]
[Result "0-1"]
[ECO "B43"]
[WhiteElo "1749"]
[BlackElo "2310"]
[Annotator "ChessBase"]
[PlyCount "82"]
[EventDate "2024.01.22"]
[EventType "swiss"]
[EventCountry "SLO"]
[SourceTitle "playchess.com"]
[Source "ChessBase"]
[SourceQuality "1"]
[TimeControl "5400+30"]

1. e4 {[%emt 0:00:02]} c5 {[%emt 0:04:59]} 2. Nf3 {[%emt 0:00:20]} e6 {[%emt 0:00:11]} 3. d4 {[%emt 0:00:27]} cxd4 {[%emt 0:00:07]} 4. Nxd4 {[%emt 0:00:04]} a6 {[%emt 0:00:05]} 5. Nc3 {[%emt 0:00:06]} Qc7 {[%emt 0:00:10]} 6. g3 {[%emt 0:00:51]} Bb4 {[%emt 0:00:10]} 7. Bd2 {[%emt 0:01:11]} Nf6 {[%emt 0:00:34]} 8. Bg2 {[%emt 0:00:10]} Qc4 {[%emt 0:01:03]} 9. Nde2 {[%emt 0:01:44]} d6 {[%emt 0:00:48]} 10. O-O {[%emt 0:00:09]} O-O {[%emt 0:02:42]} 11. a3 {[%emt 0:01:09]} Ba5 {[%emt 0:00:09]} 12. Bg5 {[%emt 0:05:27]} Qc7 {[%emt 0:02:05]} 13. h3 {[%emt 0:10:49]} Nbd7 {[%emt 0:01:29]} 14. Be3 {[%emt 0:00:53]} Ne5 {[%emt 0:00:20]} 15. b4 {[%emt 0:16:04]} Bb6 {[%emt 0:00:12]} 16. Bxb6 {[%emt 0:00:02]} Qxb6 {[%emt 0:00:07]} 17. Qd4 {[%emt 0:00:36]} Qc7 {[%emt 0:00:07]} 18. f4 {[%emt 0:00:34]} Nc4 {[%emt 0:00:05]} 19. g4 {[%emt 0:01:45]} e5 {[%emt 0:00:22]} 20. Qf2 {[%emt 0:06:42]} exf4 {[%emt 0:01:40]} 21. Nxf4 {[%emt 0:00:53]} Be6 {[%emt 0:00:07]} 22. g5 {[%emt 0:01:38]} Nd7 {[%emt 0:02:27]} 23. Ncd5 {[%emt 0:00:36]} Qd8 {[%emt 0:00:04]} 24. h4 {[%emt 0:02:35]} Nde5 {[%emt 0:00:35]} 25. Qd4 {[%emt 0:07:45]} Bg4 {[%emt 0:04:56]} 26. Nd3 {[%emt 0:04:49]} Rc8 {[%emt 0:00:17]} 27. Rf4 {[%emt 0:01:38]} Be6 {[%emt 0:00:07]} 28. Raf1 {[%emt 0:07:59]} Ng6 {[%emt 0:00:45]} 29. Rf6 {[%emt 0:03:22]} Bxd5 {[%emt 0:00:08]} 30. exd5 {[%emt 0:00:38]} gxf6 {[%emt 0:00:07]} 31. h5 {[%emt 0:04:43]} Nge5 {[%emt 0:00:09]} 32. Rxf6 {[%emt 0:00:46]} Nd7 {[%emt 0:01:31]} 33. Qf4 {[%emt 0:04:46]} Qb6+ {[%emt 0:00:50]} 34. Kh1 {[%emt 0:00:55]} Qe3 {[%emt 0:01:05]} 35. Qf5 {[%emt 0:00:33]} Nxf6 {[%emt 0:00:40]} 36. gxf6 {[%emt 0:00:13]} Kh8 {[%emt 0:01:13]} 37. Be4 {[%emt 0:02:17]} Qh6 {[%emt 0:00:06]} 38. Nf2 {[%emt 0:00:54]} Ne5 {[%emt 0:00:50]} 39. Kg2 {[%emt 0:01:57]} Rg8+ {[%emt 0:00:13]} 40. Kh3 {[%emt 0:00:07]} Rc3+ {[%emt 0:00:12]} 41. Kh4 {[%emt 0:00:42]} Ng6+ {[%emt 0:02:30]} 0-1

[Event "28th Hit Open-A 2024"]
[Site "Nova Gorica"]
[Date "2024.02.01"]
[Round "8.22"]
[White "Herega, Nejc"]
[Black "Pagnutti, Lorenzo"]
[Result "1-0"]
[ECO "D02"]
[WhiteElo "2257"]
[BlackElo "1859"]
[Annotator "ChessBase"]
[PlyCount "133"]
[EventDate "2024.01.22"]
[EventType "swiss"]
[EventCountry "SLO"]
[SourceTitle "playchess.com"]
[Source "ChessBase"]
[SourceQuality "1"]
[TimeControl "5400+30"]

1. d4 {[%emt 0:00:06]} d5 {[%emt 0:00:14]} 2. Nf3 {[%emt 0:00:10]} Nf6 {[%emt 0:00:23]} 3. Bf4 {[%emt 0:00:13]} e6 {[%emt 0:00:31]} 4. e3 {[%emt 0:00:20]} Bd6 {[%emt 0:00:19]} 5. Bg3 {[%emt 0:00:39]} O-O {[%emt 0:00:27]} 6. Nbd2 {[%emt 0:00:20]} b6 {[%emt 0:00:58]} 7. c3 {[%emt 0:00:51]} Bb7 {[%emt 0:00:22]} 8. Bd3 {[%emt 0:01:48]} c5 {[%emt 0:02:12]} 9. Ne5 {[%emt 0:02:06]} Nc6 {[%emt 0:01:29]} 10. Ndf3 {[%emt 0:05:30]} h6 {[%emt 0:02:27]} 11. Bh4 {[%emt 0:04:10]} Be7 {[%emt 0:01:15]} 12. O-O {[%emt 0:02:19]} Ne4 {[%emt 0:00:56]} 13. Nxc6 {[%emt 0:05:46]} Bxc6 {[%emt 0:00:09]} 14. Bg5 {[%emt 0:00:20]} Qe8 15. Bxe7 Qxe7 {[%emt 0:00:39]} 16. Ne5 {[%emt 0:01:10]} Bb7 {[%emt 0:01:38]} 17. Bxe4 {[%emt 0:05:04]} dxe4 {[%emt 0:00:07]} 18. Qa4 {[%emt 0:03:06]} f6 {[%emt 0:04:11]} 19. Ng6 {[%emt 0:06:48]} Qe8 {[%emt 0:00:18]} 20. Qxe8 {[%emt 0:00:18]} Rfxe8 {[%emt 0:00:05]} 21. dxc5 {[%emt 0:00:54]} Kf7 {[%emt 0:03:16]} 22. Nf4 {[%emt 0:00:59]} g5 {[%emt 0:00:32]} 23. Ne2 {[%emt 0:04:14]} bxc5 {[%emt 0:00:19]} 24. c4 {[%emt 0:01:37]} Red8 {[%emt 0:00:39]} 25. Rad1 {[%emt 0:01:33]} Bc6 {[%emt 0:04:26]} 26. Nc3 {[%emt 0:01:26]} f5 {[%emt 0:02:02]} 27. Rxd8 {[%emt 0:03:38]} Rxd8 {[%emt 0:00:07]} 28. Rd1 {[%emt 0:00:29]} Rxd1+ {[%emt 0:05:54]} 29. Nxd1 {[%emt 0:00:07]} Ke7 {[%emt 0:00:32]} 30. Kf1 {[%emt 0:03:17]} Kd6 {[%emt 0:00:30]} 31. Nc3 {[%emt 0:02:40]} a6 {[%emt 0:00:37]} 32. Ke2 {[%emt 0:00:56]} h5 {[%emt 0:00:45]} 33. Nb1 {[%emt 0:03:41]} Be8 {[%emt 0:01:22]} 34. Kd2 {[%emt 0:02:12]} e5 {[%emt 0:00:46]} 35. Na3 {[%emt 0:01:54]} h4 {[%emt 0:01:15]} 36. Nc2 {[%emt 0:01:15]} a5 {[%emt 0:05:32]} 37. Na3 {[%emt 0:00:32]} g4 {[%emt 0:01:28]} 38. g3 {[%emt 0:00:42]} hxg3 {[%emt 0:02:28]} 39. hxg3 {[%emt 0:06:32]} Kc6 {[%emt 0:02:00]} 40. Nb5 {[%emt 0:00:53]} Bf7 {[%emt 0:00:42]} 41. Kc3 {[%emt 0:00:20]} Be6 {[%emt 0:02:09]} 42. b3 {[%emt 0:02:02]} Bf7 {[%emt 0:01:06]} 43. Kb2 {[%emt 0:00:35]} a4 {[%emt 0:04:14]} 44. Kc3 {[%emt 0:02:33]} axb3 {[%emt 0:00:20]} 45. axb3 {[%emt 0:01:18]} Be6 {[%emt 0:04:22]} 46. b4 {[%emt 0:01:00]} Bf7 {[%emt 0:02:00]} 47. Kb3 {[%emt 0:00:48]} Be6 {[%emt 0:00:49]} 48. Nc3 {[%emt 0:00:43]} cxb4 {[%emt 0:00:45]} 49. Kxb4 {[%emt 0:00:15]} Bf7 {[%emt 0:00:46]} 50. Na4 {[%emt 0:01:17]} Be8 {[%emt 0:02:13]} 51. Nc5 {[%emt 0:00:54]} Bf7 {[%emt 0:00:21]} 52. Nb3 {[%emt 0:00:13]} Kc7 {[%emt 0:05:06]} 53. Kc5 {[%emt 0:01:31]} Kd7 {[%emt 0:02:43]} 54. Na5 {[%emt 0:00:31]} Ke6 {[%emt 0:00:58]} 55. Nc6 {[%emt 0:01:48]} Be8 {[%emt 0:00:46]} 56. Nb4 {[%emt 0:00:11]} Ba4 {[%emt 0:00:38]} 57. Kb6 {[%emt 0:00:29]} Kd7 {[%emt 0:04:45]} 58. c5 {[%emt 0:00:28]} Bb3 {[%emt 0:00:21]} 59. Na6 {[%emt 0:03:55]} Be6 {[%emt 0:01:05]} 60. Nb8+ {[%emt 0:00:58]} Ke7 {[%emt 0:00:50]} 61. Kc7 {[%emt 0:00:47]} f4 {[%emt 0:03:11]} 62. Nc6+ {[%emt 0:00:20]} Kf6 {[%emt 0:00:05]} 63. Kd6 {[%emt 0:00:19]} fxe3 {[%emt 0:01:57]} 64. fxe3 {[%emt 0:00:10]} Bc8 {[%emt 0:02:09]} 65. Nxe5 {[%emt 0:00:16]} Kf5 {[%emt 0:00:38]} 66. c6 {[%emt 0:00:39]} Kf6 {[%emt 0:00:43]} 67. c7 {[%emt 0:00:33]} 1-0

[Event "28th Hit Open-A 2024"]
[Site "Nova Gorica"]
[Date "2024.02.01"]
[Round "8.23"]
[White "Orsatti, Marcello"]
[Black "Ceschia, Ivano"]
[Result "1/2-1/2"]
[ECO "C01"]
[WhiteElo "1918"]
[BlackElo "2183"]
[Annotator "ChessBase"]
[PlyCount "60"]
[EventDate "2024.01.22"]
[EventType "swiss"]
[EventCountry "SLO"]
[SourceTitle "playchess.com"]
[Source "ChessBase"]
[SourceQuality "1"]
[TimeControl "5400+30"]

1. e4 {[%emt 0:00:03]} e6 {[%emt 0:08:05]} 2. c4 {[%emt 0:04:48]} d5 {[%emt 0:00:49]} 3. exd5 {[%emt 0:00:27]} exd5 {[%emt 0:00:06]} 4. d4 {[%emt 0:00:20]} Nf6 {[%emt 0:00:52]} 5. a3 {[%emt 0:07:29]} Nc6 {[%emt 0:01:24]} 6. c5 {[%emt 0:08:19]} Be7 {[%emt 0:00:13]} 7. Nf3 {[%emt 0:02:19]} O-O {[%emt 0:02:18]} 8. Be2 {[%emt 0:00:31]} Ne4 {[%emt 0:02:21]} 9. O-O {[%emt 0:01:39]} Bf6 {[%emt 0:00:10]} 10. h3 {[%emt 0:03:26]} b6 {[%emt 0:06:55]} 11. cxb6 {[%emt 0:01:00]} axb6 {[%emt 0:00:08]} 12. Nc3 {[%emt 0:03:56]} Na5 {[%emt 0:27:20]} 13. Qc2 {[%emt 0:13:26]} Nxc3 {[%emt 0:08:53]} 14. bxc3 {[%emt 0:11:09]} Ba6 {[%emt 0:06:31]} 15. Bxa6 {[%emt 0:05:04]} Rxa6 {[%emt 0:00:07]} 16. a4 {[%emt 0:00:53]} Re8 {[%emt 0:01:19]} 17. Bf4 {[%emt 0:04:07]} Nc4 {[%emt 0:00:34]} 18. Rfe1 {[%emt 0:00:34]} Rxe1+ {[%emt 0:02:10]} 19. Rxe1 {[%emt 0:00:40]} Ra8 {[%emt 0:01:44]} 20. Ne5 {[%emt 0:02:41]} Bxe5 {[%emt 0:00:15]} 21. dxe5 {[%emt 0:00:59]} Qd7 {[%emt 0:01:54]} 22. Qe2 {[%emt 0:08:14]} Rxa4 {[%emt 0:07:13]} 23. e6 {[%emt 0:00:28]} fxe6 {[%emt 0:00:11]} 24. Bxc7 {[%emt 0:04:17]} Ra3 {[%emt 0:07:25]} 25. Be5 {[%emt 0:05:33]} Ra8 {[%emt 0:00:08]} 26. Bd4 {[%emt 0:00:34]} Re8 {[%emt 0:01:34]} 27. f4 {[%emt 0:00:54]} b5 {[%emt 0:01:41]} 28. Ra1 {[%emt 0:01:11]} e5 {[%emt 0:06:54]} 29. fxe5 {[%emt 0:02:08]} Qe6 {[%emt 0:00:07]} 30. Rb1 {[%emt 0:01:19]} Nxe5 {[%emt 0:01:38]} 1/2-1/2

[Event "28th Hit Open-A 2024"]
[Site "Nova Gorica"]
[Date "2024.02.01"]
[Round "8.24"]
[White "Ivsek, Cveto"]
[Black "Hrescak, Ivana"]
[Result "1/2-1/2"]
[ECO "A48"]
[WhiteElo "1711"]
[BlackElo "2117"]
[Annotator "ChessBase"]
[PlyCount "53"]
[EventDate "2024.01.22"]
[EventType "swiss"]
[EventCountry "SLO"]
[SourceTitle "playchess.com"]
[Source "ChessBase"]
[SourceQuality "1"]
[TimeControl "5400+30"]

1. d4 {[%emt 0:00:07]} Nf6 {[%emt 0:00:05]} 2. Bf4 {[%emt 0:00:09]} g6 {[%emt 0:00:08]} 3. e3 {[%emt 0:00:26]} Bg7 {[%emt 0:00:06]} 4. Nf3 {[%emt 0:00:39]} d6 {[%emt 0:00:10]} 5. c3 {[%emt 0:01:04]} O-O {[%emt 0:00:10]} 6. h3 {[%emt 0:00:27]} Nbd7 {[%emt 0:01:50]} 7. Nbd2 {[%emt 0:02:58]} b6 {[%emt 0:08:27]} 8. Be2 {[%emt 0:01:57]} Bb7 {[%emt 0:00:52]} 9. O-O {[%emt 0:00:08]} Qe8 {[%emt 0:05:17]} 10. Nc4 {[%emt 0:10:17]} Ne4 {[%emt 0:01:09]} 11. Nfd2 {[%emt 0:02:20]} e5 {[%emt 0:07:54]} 12. Bh2 {[%emt 0:04:32]} Nxd2 {[%emt 0:04:08]} 13. Nxd2 {[%emt 0:00:59]} Qe7 {[%emt 0:07:07]} 14. Bf3 {[%emt 0:00:44]} e4 {[%emt 0:01:43]} 15. Be2 {[%emt 0:01:48]} Kh8 {[%emt 0:01:30]} 16. a4 {[%emt 0:00:15]} Nf6 {[%emt 0:16:08]} 17. a5 {[%emt 0:01:33]} h6 {[%emt 0:00:40]} 18. a6 {[%emt 0:02:48]} Bc6 {[%emt 0:01:22]} 19. c4 {[%emt 0:05:51]} Nh7 {[%emt 0:06:47]} 20. Nb1 {[%emt 0:00:22]} f5 {[%emt 0:04:00]} 21. Nc3 {[%emt 0:01:10]} g5 {[%emt 0:02:13]} 22. Nd5 {[%emt 0:02:44]} Bxd5 {[%emt 0:04:50]} 23. cxd5 {[%emt 0:00:08]} Qf7 {[%emt 0:03:32]} 24. Rc1 {[%emt 0:06:29]} Nf6 {[%emt 0:04:16]} 25. Bb5 {[%emt 0:01:08]} Rab8 {[%emt 0:04:00]} 26. Bc6 {[%emt 0:02:09]} b5 {[%emt 0:02:30]} 27. Bb7 {[%emt 0:01:23]} 1/2-1/2